fUST/lending_fUST_20260114
["ID","MTS","AMOUNT","RATE_DAILY","PERIOD"]
[401812418,1768380639067,-1022.67,0.000117,2]
[401812419,1768380639077,-151.0,0.000117,2]
[401812420,1768380639087,-498.51,0.000117,2]
[401812421,1768380639097,-779.94309824,0.00011761,2]
[401812422,1768380639106,-500.0,0.00011781,2]
[401812423,1768380639116,-151.0,0.000118,2]
[401812424,1768380639125,-587.0,0.00011811,2]
[401812425,1768380639135,-2351.0,0.00011811,2]
[401812426,1768380639146,-587.0,0.00011811,2]
[401812427,1768380639155,-288.40469912,0.00011899,2]
[401812428,1768380639165,-500.0,0.00011899,2]
[401812429,1768380639174,-500.0,0.00011899,2]
[401812430,1768380639184,-500.0,0.00011899,2]
[401812431,1768380639193,-500.0,0.00011899,2]
[401812432,1768380639203,-500.0,0.00011899,2]
[401812433,1768380639212,-500.0,0.00011899,2]
[401812434,1768380639221,-500.0,0.00011899,2]
[401812435,1768380639231,-210.35,0.00011918,2]
[401812436,1768380639240,-151.0,0.00012,2]
[401812437,1768380639249,-500.0,0.00012036,2]
[401812438,1768380639258,-500.0,0.00012036,2]
[401812439,1768380639267,-500.0,0.00012036,2]
[401812440,1768380639276,-500.0,0.00012036,2]
[401812441,1768380639286,-500.0,0.00012036,2]
[401812442,1768380639295,-500.0,0.00012036,2]
[401812443,1768380639305,-500.0,0.00012036,2]
[401812444,1768380639314,-500.0,0.00012055,2]
[401812445,1768380639323,-500.0,0.00012055,2]
[401812446,1768380639333,-500.0,0.00012055,2]
[401812447,1768380639342,-908.0,0.00012055,2]
[401812448,1768380639351,-500.0,0.00012055,2]
[401812449,1768380639361,-500.0,0.00012055,2]
[401812450,1768380639370,-452.0,0.00012055,2]
[401812451,1768380639379,-500.0,0.00012055,2]
[401812452,1768380639388,-152.26387906,0.00012055,2]
[401812453,1768380639398,-151.0,0.000121,2]
[401812454,1768380639407,-300.0,0.00012119,2]
[401812455,1768380639417,-500.0,0.00012173,2]
[401812456,1768380639427,-500.0,0.00012173,2]
[401812458,1768380639437,-500.0,0.00012173,2]
[401812459,1768380639446,-500.0,0.00012173,2]
[401812460,1768380639456,-500.0,0.00012173,2]
[401812462,1768380639465,-500.0,0.00012173,2]
[401812463,1768380639474,-500.0,0.00012173,2]
[401812464,1768380639482,-864.0,0.00012173,2]
[401812466,1768380639492,-500.0,0.00012192,2]
[401812468,1768380639501,-500.0,0.00012192,2]
[401812469,1768380639511,-908.0,0.00012192,2]
[401812470,1768380639521,-500.0,0.00012192,2]
[401812471,1768380639530,-500.0,0.00012192,2]
[401812472,1768380639540,-452.0,0.00012192,2]
[401812473,1768380639678,-500.0,0.00012192,2]
[401812474,1768380639689,-1022.67,0.000122,2]
[401812476,1768380639698,-498.51,0.000122,2]
[401812477,1768380639712,-199.94013067,0.00012206,2]
[401812478,1768380639722,-366.99002628,0.0001231,2]
[401812479,1768380639731,-500.0,0.0001231,2]
[401812480,1768380639741,-500.0,0.0001231,2]
[401812482,1768380639751,-500.0,0.0001231,2]
[401812484,1768380639760,-450.0,0.0001231,2]
[401812486,1768380639768,-407.49285757,0.0001231,2]
[401812488,1768380639779,-2017.55934077,0.00012318,2]
[401812490,1768380639787,-5500.81,0.00012329,2]
[401812492,1768380639796,-4584.0,0.00012329,2]
[401812494,1768380639805,-3820.0,0.00012329,2]
[401812495,1768380639814,-3183.34,0.00012329,2]
[401812497,1768380639824,-2652.78,0.00012329,2]
[401812499,1768380639833,-2210.65,0.00012329,2]
[401812501,1768380639843,-1842.21,0.00012329,2]
[401812503,1768380639851,-1535.17,0.00012329,2]
[401812505,1768380639860,-1279.31,0.00012329,2]
[401812507,1768380639869,-1066.09,0.00012329,2]
[401812509,1768380639878,-888.41,0.00012329,2]
[401812511,1768380639887,-740.34,0.00012329,2]
[401812513,1768380639896,-616.95,0.00012329,2]
[401812515,1768380639904,-514.13,0.00012329,2]
[401812517,1768380639914,-428.44,0.00012329,2]
[401812519,1768380639923,-500.0,0.00012329,2]
[401812521,1768380639932,-357.03,0.00012329,2]
[401812523,1768380639941,-297.53,0.00012329,2]
[401812525,1768380639950,-247.94,0.00012329,2]
[401812527,1768380639959,-206.62,0.00012329,2]
[401812529,1768380639968,-172.18,0.00012329,2]
[401812531,1768380639978,-860.93,0.00012329,2]
[401812533,1768380639987,-500.0,0.00012329,2]
[401812535,1768380639996,-500.0,0.00012329,2]
[401812537,1768380640007,-908.0,0.00012329,2]
[401812540,1768380640016,-500.0,0.00012329,2]
[401812542,1768380640026,-500.0,0.00012329,2]
[401812544,1768380640035,-200.0,0.00012329,2]
[401812546,1768380640044,-200.0,0.00012329,2]
[401812547,1768380640053,-452.0,0.00012329,2]
[401812549,1768380640063,-500.0,0.00012329,2]
[401812551,1768380640073,-1126.22646288,0.00012329,2]
[401812553,1768380640082,-1126.22646288,0.00012329,2]
[401812555,1768380640091,-1126.22646288,0.00012329,2]
[401812557,1768380640100,-1126.22646288,0.00012329,2]
[401812559,1768380640109,-1126.22646288,0.00012329,2]
[401812560,1768380640117,-1126.22646288,0.00012329,2]
[401812561,1768380640128,-1126.22646288,0.00012329,2]
[401812562,1768380640137,-1126.22646288,0.00012329,2]
[401812563,1768380640146,-1126.22646288,0.00012329,2]
[401812564,1768380640155,-1126.22646288,0.00012329,2]
[401812565,1768380640164,-1126.22646288,0.00012329,2]
[401812566,1768380640173,-1126.22646288,0.00012329,2]
[401812567,1768380640183,-1126.22646288,0.00012329,2]
[401812568,1768380640192,-1126.22646288,0.00012329,2]
[401812569,1768380640201,-1126.22646288,0.00012329,2]
[401812570,1768380640210,-1126.22646288,0.00012329,2]
[401812571,1768380640221,-1126.22646288,0.00012329,2]
[401812572,1768380640232,-1126.22646288,0.00012329,2]
[401812573,1768380640244,-1126.22646288,0.00012329,2]
[401812574,1768380640253,-1126.22646288,0.00012329,2]
[401812575,1768380640263,-1126.22646288,0.00012329,2]
[401812576,1768380640272,-1126.22646288,0.00012329,2]
[401812577,1768380640281,-1126.22646288,0.00012329,2]
[401812578,1768380640301,-1126.22646288,0.00012329,2]
[401812579,1768380640321,-1126.22646288,0.00012329,2]
[401812580,1768380640341,-1126.22646288,0.00012329,2]
[401812581,1768380640361,-1126.22646288,0.00012329,2]
[401812582,1768380640380,-1126.22646288,0.00012329,2]
[401812583,1768380640400,-1126.22646288,0.00012329,2]
[401812584,1768380640421,-1126.22646288,0.00012329,2]
[401812586,1768380640441,-1126.22646288,0.00012329,2]
[401812587,1768380640462,-1126.22646288,0.00012329,2]
[401812589,1768380640482,-1126.22646288,0.00012329,2]
[401812591,1768380640503,-1126.22646288,0.00012329,2]
[401812593,1768380640523,-1126.22646288,0.00012329,2]
[401812595,1768380640544,-1126.22646288,0.00012329,2]
[401812597,1768380640564,-1126.22646288,0.00012329,2]
[401812599,1768380640585,-1126.22646288,0.00012329,2]
[401812601,1768380640606,-1126.22646288,0.00012329,2]
[401812603,1768380640626,-1126.22646288,0.00012329,2]
[401812605,1768380640635,-1126.22646288,0.00012329,2]
[401812607,1768380640644,-1126.22646288,0.00012329,2]
[401812609,1768380640653,-1126.22646288,0.00012329,2]
[401812611,1768380640662,-1126.22646288,0.00012329,2]
[401812613,1768380640671,-1126.22646288,0.00012329,2]
[401812615,1768380640680,-1126.22646288,0.00012329,2]
[401812617,1768380640689,-1126.22646288,0.00012329,2]
[401812619,1768380640699,-1126.22646288,0.00012329,2]
[401812621,1768380640711,-1126.22646288,0.00012329,2]
[401812623,1768380640720,-1126.22646288,0.00012329,2]
[401812624,1768380640728,-1126.22646288,0.00012329,2]
[401812626,1768380640737,-1126.22646288,0.00012329,2]
[401812628,1768380640747,-1126.22646288,0.00012329,2]
[401812630,1768380640756,-1126.22646288,0.00012329,2]
[401812632,1768380640765,-1126.22646288,0.00012329,2]
[401812634,1768380640774,-1126.22646288,0.00012329,2]
[401812636,1768380640786,-1126.22646288,0.00012329,2]
[401812638,1768380640795,-1126.22646288,0.00012329,2]
[401812640,1768380640804,-1126.22646288,0.00012329,2]
[401812642,1768380640813,-1126.22646288,0.00012329,2]
[401812644,1768380640823,-1126.22646288,0.00012329,2]
[401812646,1768380640833,-1126.22646288,0.00012329,2]
[401812648,1768380640842,-1126.22646288,0.00012329,2]
[401812650,1768380640851,-1126.22646288,0.00012329,2]
[401812652,1768380640860,-1126.22646288,0.00012329,2]
[401812654,1768380640870,-1126.22646288,0.00012329,2]
[401812656,1768380640879,-1101.74327889,0.00012329,2]
[401812658,1768380640888,-1101.74327889,0.00012329,2]
[401812660,1768380640897,-1101.74327889,0.00012329,2]
[401812662,1768380640906,-1101.74327889,0.00012329,2]
[401812664,1768380640914,-1101.74327889,0.00012329,2]
[401812666,1768380640924,-1101.74327889,0.00012329,2]
[401812668,1768380640933,-1101.74327889,0.00012329,2]
[401812670,1768380640943,-1101.74327889,0.00012329,2]
[401812672,1768380640952,-1101.74327889,0.00012329,2]
[401812674,1768380640962,-1101.74327889,0.00012329,2]
[401812676,1768380640971,-1101.74327889,0.00012329,2]
[401812678,1768380640980,-1101.74327889,0.00012329,2]
[401812680,1768380640990,-1101.74327889,0.00012329,2]
[401812682,1768380640999,-1101.74327889,0.00012329,2]
[401812684,1768380641009,-1101.74327889,0.00012329,2]
[401812686,1768380641018,-1101.74327889,0.00012329,2]
[401812688,1768380641027,-1101.74327889,0.00012329,2]
[401812690,1768380641036,-1101.74327889,0.00012329,2]
[401812692,1768380641045,-1101.74327889,0.00012329,2]
[401812694,1768380641055,-1101.74327889,0.00012329,2]
[401812696,1768380641063,-1101.74327889,0.00012329,2]
[401812698,1768380641072,-1101.74327889,0.00012329,2]
[401812700,1768380641081,-1101.74327889,0.00012329,2]
[401812702,1768380641091,-550.71343686,0.00012368,2]
[401812704,1768380641100,-1500.0,0.00012377,2]
[401812706,1768380641109,-450.0,0.00012447,2]
[401812708,1768380641119,-500.0,0.00012447,2]
[401812710,1768380641128,-233.98664865,0.00012447,2]
[401812712,1768380641137,-500.0,0.00012466,2]
[401812714,1768380641146,-908.0,0.00012466,2]
[401812716,1768380641155,-500.0,0.00012466,2]
[401812718,1768380641164,-580.25340699,0.00012466,2]
[401812720,1768380641173,-452.0,0.00012466,2]
[401812721,1768380641182,-500.0,0.00012466,2]
[401812724,1768380641192,-500.0,0.00012584,2]
[401812726,1768380641201,-500.0,0.00012603,2]
[401812728,1768380641211,-500.0,0.00012603,2]
[401812730,1768380641220,-191.14675922,0.00012603,2]
[401812732,1768380641228,-908.0,0.00012603,2]
[401812734,1768380641238,-500.0,0.00012603,2]
[401812735,1768380641247,-452.0,0.00012603,2]
[401812737,1768380641256,-500.0,0.00012603,2]
[401812739,1768380641265,-1022.67,0.000127,2]
[401812741,1768380641275,-498.51,0.000127,2]
[401812743,1768380641284,-500.0,0.00012721,2]
[401812745,1768380641293,-500.0,0.0001274,2]
[401812747,1768380641302,-200.0,0.0001274,2]
[401812749,1768380641311,-908.0,0.0001274,2]
[401812751,1768380641321,-500.0,0.0001274,2]
[401812753,1768380641332,-151.23570132,0.0001274,2]
[401812755,1768380641341,-452.0,0.0001274,2]
[401812757,1768380641350,-200.0,0.0001274,2]
[401812759,1768380641359,-500.0,0.0001274,2]
[401812761,1768380641368,-162.24817175,0.000128,2]
[401812763,1768380641377,-500.0,0.00012877,2]
[401812765,1768380641386,-500.0,0.00012877,2]
[401812767,1768380641395,-500.0,0.00012877,2]
[401812769,1768380641404,-908.0,0.00012877,2]
[401812771,1768380641413,-452.0,0.00012877,2]
[401812773,1768380641423,-175.48644191,0.00012877,2]
[401812775,1768380641432,-250.0,0.00012898,2]
[401812777,1768380641442,-823.0,0.00012992,2]
[401812779,1768380641451,-2403.0,0.00012992,2]
[401812781,1768380641460,-823.0,0.00012992,2]
[401812783,1768380641469,-1057.36981411,0.00013,2]
[401812785,1768380641479,-500.0,0.00013014,2]
[401812787,1768380641488,-428.44929732,0.00013014,2]
[401812789,1768380641497,-908.0,0.00013014,2]
[401812791,1768380641507,-452.0,0.00013014,2]
[401812793,1768380641516,-500.0,0.00013051,2]
[401812795,1768380641525,-161.27,0.00013051,2]
[401812797,1768380641534,-161.27,0.00013051,2]
[401812799,1768380641543,-161.27,0.00013051,2]
[401812801,1768380641552,-161.27,0.00013051,2]
[401812803,1768380641561,-161.27,0.00013051,2]
[401812805,1768380641571,-161.23,0.00013051,2]
[401812807,1768380641580,-204.11,0.00013051,2]
[401812809,1768380641589,-500.0,0.00013151,2]
[401812811,1768380641598,-410.85131619,0.00013151,2]
[401812813,1768380641607,-908.0,0.00013151,2]
[401812815,1768380641616,-452.0,0.00013151,2]
[401812817,1768380641625,-1022.67,0.000132,2]
[401812819,1768380641634,-498.51,0.000132,2]
[401812821,1768380641643,-167.63409657,0.00013273,2]
[401812823,1768380641652,-500.0,0.00013273,2]
[401812825,1768380641661,-547.00656757,0.00013273,2]
[401812827,1768380641670,-500.0,0.00013273,2]
[401812829,1768380641679,-500.0,0.00013273,2]
[401812831,1768380641688,-500.0,0.00013273,2]
[401812833,1768380641697,-500.0,0.00013273,2]
[401812835,1768380641710,-500.0,0.00013273,2]
[401812837,1768380641719,-500.0,0.00013273,2]
[401812839,1768380641728,-500.0,0.00013273,2]
[401812841,1768380641738,-500.0,0.00013273,2]
[401812843,1768380641748,-500.0,0.00013273,2]
[401812845,1768380641757,-500.0,0.00013273,2]
[401812847,1768380641767,-500.0,0.00013273,2]
[401812849,1768380641779,-500.0,0.00013273,2]
[401812851,1768380641788,-500.0,0.00013273,2]
[401812853,1768380641797,-500.0,0.00013273,2]
[401812855,1768380641805,-501.85584568,0.00013273,2]
[401812857,1768380641814,-500.0,0.00013273,2]
[401812859,1768380641823,-500.0,0.00013273,2]
[401812861,1768380641832,-500.0,0.00013273,2]
[401812863,1768380641841,-500.0,0.00013273,2]
[401812865,1768380641850,-500.0,0.00013273,2]
[401812867,1768380641859,-500.0,0.00013273,2]
[401812869,1768380641868,-500.0,0.00013273,2]
[401812871,1768380641877,-500.0,0.00013273,2]
[401812873,1768380641885,-500.21355158,0.00013273,2]
[401812875,1768380641894,-500.0,0.00013273,2]
[401812877,1768380641903,-162.00337471,0.00013273,2]
[401812878,1768380641913,-500.0,0.00013273,2]
[401812880,1768380641922,-500.0,0.00013273,2]
[401812882,1768380641931,-500.0,0.00013273,2]
[401812884,1768380641940,-500.0,0.00013273,2]
[401812886,1768380641949,-500.18250774,0.00013273,2]
[401812888,1768380641958,-500.49098579,0.00013273,2]
[401812890,1768380641968,-500.0,0.00013273,2]
[401812892,1768380641978,-500.0,0.00013273,2]
[401812894,1768380641986,-500.0,0.00013273,2]
[401812896,1768380641995,-500.0,0.00013273,2]
[401812898,1768380642006,-500.0,0.00013273,2]
[401812900,1768380642015,-500.20354178,0.00013273,2]
[401812902,1768380642024,-501.03457385,0.00013273,2]
[401812904,1768380642033,-500.0,0.00013273,2]
[401812906,1768380642042,-500.0,0.00013273,2]
[401812908,1768380642051,-500.25674362,0.00013273,2]
[401812910,1768380642061,-500.0,0.00013273,2]
[401812912,1768380642070,-520.1094365,0.00013273,2]
[401812914,1768380642079,-500.0,0.00013273,2]
[401812916,1768380642088,-195.77760179,0.00013273,2]
[401812918,1768380642098,-185.624668,0.00013273,2]
[401812920,1768380642108,-500.28056306,0.00013273,2]
[401812922,1768380642117,-500.0,0.00013273,2]
[401812924,1768380642126,-261.59054001,0.00013273,2]
[401812926,1768380642135,-500.0,0.00013273,2]
[401812928,1768380642144,-500.0,0.00013273,2]
[401812930,1768380642153,-500.0,0.00013273,2]
[401812932,1768380642162,-500.0,0.00013273,2]
[401812934,1768380642171,-500.0,0.00013273,2]
[401812936,1768380642180,-908.0,0.00013288,2]
[401812938,1768380642190,-452.0,0.00013288,2]
[401812940,1768380642199,-1000.0,0.0001339,2]
[401812943,1768380642208,-500.0,0.00013425,2]
[401812945,1768380642218,-908.0,0.00013425,2]
[401812947,1768380642226,-452.0,0.00013425,2]
[401812949,1768380642235,-908.0,0.00013562,2]
[401812951,1768380642244,-452.0,0.00013562,2]
[401812953,1768380642253,-300.0,0.00013673,2]
[401812955,1768380642262,-500.0,0.00013698,2]
[401812957,1768380642271,-500.0,0.00013698,2]
[401812959,1768380642279,-622.37610142,0.00013698,2]
[401812961,1768380642288,-500.0,0.00013698,2]
[401812963,1768380642297,-500.0,0.00013698,2]
[401812965,1768380642306,-453.49252577,0.00013698,2]
[401812967,1768380642315,-800.23,0.00013698,2]
[401812969,1768380642324,-800.23,0.00013698,2]
[401812971,1768380642333,-800.23,0.00013698,2]
[401812973,1768380642342,-800.23,0.00013698,2]
[401812975,1768380642351,-800.23,0.00013698,2]
[401812977,1768380642360,-800.23,0.00013698,2]
[401812990,1768380642469,-800.23,0.00013698,2]
[401812992,1768380642479,-800.23,0.00013698,2]
[401812994,1768380642489,-800.23,0.00013698,2]
[401812996,1768380642498,-800.23,0.00013698,2]
[401812998,1768380642507,-800.23,0.00013698,2]
[401813000,1768380642516,-800.23,0.00013698,2]
[401813002,1768380642525,-800.23,0.00013698,2]
[401813004,1768380642535,-800.23,0.00013698,2]
[401813006,1768380642544,-800.23,0.00013698,2]
[401813008,1768380642552,-800.23,0.00013698,2]
[401813010,1768380642561,-800.23,0.00013698,2]
[401813012,1768380642571,-800.23,0.00013698,2]
[401813014,1768380642580,-800.23,0.00013698,2]
[401813016,1768380642589,-800.23,0.00013698,2]
[401813018,1768380642598,-800.23,0.00013698,2]
[401813020,1768380642608,-800.23,0.00013698,2]
[401813022,1768380642617,-800.23,0.00013698,2]
[401813024,1768380642626,-800.43872931,0.00013698,2]
[401813026,1768380642634,-500.0,0.00013698,2]
[401813028,1768380642643,-500.0,0.00013698,2]
[401813030,1768380642652,-633.96263391,0.00013698,2]
[401813032,1768380642661,-500.0,0.00013698,2]
[401813034,1768380642670,-500.0,0.00013698,2]
[401813036,1768380642679,-500.0,0.00013698,2]
[401813038,1768380642688,-500.0,0.00013698,2]
[401813040,1768380642698,-497.78018917,0.00013698,2]
[401813042,1768380642711,-500.0,0.00013698,2]
[401813044,1768380642719,-500.0,0.00013698,2]
[401813046,1768380642728,-500.0,0.00013698,2]
[401813048,1768380642737,-500.0,0.00013698,2]
[401813050,1768380642747,-500.0,0.00013698,2]
[401813052,1768380642755,-500.0,0.00013698,2]
[401813054,1768380642764,-500.0,0.00013698,2]
[401813056,1768380642773,-500.0,0.00013698,2]
[401813058,1768380642784,-500.0,0.00013698,2]
[401813060,1768380642793,-500.0,0.00013698,2]
[401813062,1768380642802,-550.39437847,0.00013698,2]
[401813064,1768380642811,-582.4382982,0.00013698,2]
[401813066,1768380642818,-589.28,0.00013698,2]
[401813068,1768380642827,-589.28,0.00013698,2]
[401813070,1768380642835,-589.28,0.00013698,2]
[401813072,1768380642845,-589.28,0.00013698,2]
[401813074,1768380642853,-589.28,0.00013698,2]
[401813076,1768380642862,-589.28,0.00013698,2]
[401813077,1768380642872,-589.28,0.00013698,2]
[401813078,1768380642881,-589.28,0.00013698,2]
[401813079,1768380642890,-589.28,0.00013698,2]
[401813080,1768380642898,-589.28,0.00013698,2]
[401813081,1768380642907,-589.28,0.00013698,2]
[401813082,1768380642915,-589.28,0.00013698,2]
[401813084,1768380642924,-589.28,0.00013698,2]
[401813086,1768380642934,-589.28,0.00013698,2]
[401813088,1768380642943,-589.28,0.00013698,2]
[401813090,1768380642953,-589.28,0.00013698,2]
[401813092,1768380642962,-589.28,0.00013698,2]
[401813094,1768380642974,-589.28,0.00013698,2]
[401813096,1768380642984,-589.28,0.00013698,2]
[401813098,1768380642995,-589.28,0.00013698,2]
[401813100,1768380643004,-589.28,0.00013698,2]
[401813102,1768380643014,-589.28,0.00013698,2]
[401813104,1768380643024,-589.28,0.00013698,2]
[401813106,1768380643033,-589.38429935,0.00013698,2]
[401813108,1768380643044,-1000.0,0.00013698,2]
[401813110,1768380643054,-1000.0,0.00013698,2]
[401813112,1768380643063,-1000.0,0.00013698,2]
[401813114,1768380643073,-1000.0,0.00013698,2]
[401813116,1768380643083,-1000.0,0.00013698,2]
[401813118,1768380643093,-1000.0,0.00013698,2]
[401813120,1768380643104,-1000.0,0.00013698,2]
[401813122,1768380643113,-1017.75755303,0.00013698,2]
[401813124,1768380643123,-500.0,0.00013698,2]
[401813126,1768380643133,-500.0,0.00013698,2]
[401813128,1768380643143,-500.0,0.00013698,2]
[401813130,1768380643153,-500.0,0.00013698,2]
[401813132,1768380643162,-500.0,0.00013698,2]
[401813134,1768380643172,-500.0,0.00013698,2]
[401813136,1768380643182,-500.0,0.00013698,2]
[401813138,1768380643193,-500.0,0.00013698,2]
[401813141,1768380643208,-500.0,0.00013698,2]
[401813145,1768380643218,-500.0,0.00013698,2]
[401813147,1768380643230,-500.0,0.00013698,2]
[401813148,1768380643240,-500.0,0.00013698,2]
[401813151,1768380643250,-500.0,0.00013698,2]
[401813153,1768380643261,-500.0,0.00013698,2]
[401813155,1768380643271,-585.28946164,0.00013698,2]
[401813156,1768380643281,-500.0,0.00013698,2]
[401813158,1768380643291,-500.0,0.00013698,2]
[401813161,1768380643301,-500.0,0.00013698,2]
[401813163,1768380643314,-453.8287473,0.00013698,2]
[401813164,1768380643326,-287.27602471,0.00013698,2]
[401813167,1768380643337,-518.87817295,0.00013698,2]
[401813169,1768380643348,-504.29229129,0.00013698,2]
[401813171,1768380643357,-500.0,0.00013698,2]
[401813173,1768380643367,-500.0,0.00013698,2]
[401813175,1768380643377,-500.0,0.00013698,2]
[401813177,1768380643387,-559.52204836,0.00013698,2]
[401813179,1768380643396,-500.0,0.00013698,2]
[401813180,1768380643406,-500.0,0.00013698,2]
[401813183,1768380643417,-500.0,0.00013698,2]
[401813185,1768380643427,-500.0,0.00013698,2]
[401813187,1768380643439,-500.0,0.00013698,2]
[401813189,1768380643449,-500.0,0.00013698,2]
[401813191,1768380643459,-500.0,0.00013698,2]
[401813193,1768380643469,-500.0,0.00013698,2]
[401813195,1768380643479,-500.0,0.00013698,2]
[401813197,1768380643488,-500.0,0.00013698,2]
[401813199,1768380643498,-500.0,0.00013698,2]
[401813201,1768380643507,-500.0,0.00013698,2]
[401813202,1768380643517,-500.0,0.00013698,2]
[401813204,1768380643526,-500.0,0.00013698,2]
[401813207,1768380643536,-500.0,0.00013698,2]
[401813209,1768380643546,-500.0,0.00013698,2]
[401813210,1768380643555,-500.0,0.00013698,2]
[401813212,1768380643565,-500.0,0.00013698,2]
[401813214,1768380643574,-500.0,0.00013698,2]
[401813216,1768380643583,-516.10527878,0.00013698,2]
[401813219,1768380643594,-500.0,0.00013698,2]
[401813221,1768380643603,-500.0,0.00013698,2]
[401813223,1768380643612,-500.0,0.00013698,2]
[401813225,1768380643622,-500.0,0.00013698,2]
[401813227,1768380643631,-500.0,0.00013698,2]
[401813229,1768380643642,-500.0,0.00013698,2]
[401813231,1768380643652,-509.06636441,0.00013698,2]
[401813233,1768380643662,-500.0,0.00013698,2]
[401813235,1768380643672,-500.0,0.00013698,2]
[401813237,1768380643681,-500.0,0.00013698,2]
[401813239,1768380643691,-500.0,0.00013698,2]
[401813241,1768380643703,-500.0,0.00013698,2]
[401813242,1768380643713,-500.0,0.00013698,2]
[401813244,1768380643723,-500.0,0.00013698,2]
[401813246,1768380643733,-500.0,0.00013698,2]
[401813249,1768380643743,-500.0,0.00013698,2]
[401813250,1768380643764,-500.0,0.00013698,2]
[401813253,1768380643786,-260.74557216,0.00013698,2]
[401813254,1768380643808,-1798.538388,0.00013699,2]
[401813256,1768380643829,-500.0,0.00013699,2]
[401813258,1768380643851,-489.04509742,0.00013699,2]
[401813260,1768380643874,-500.0,0.00013699,2]
[401813262,1768380643896,-500.0,0.00013699,2]
[401813264,1768380643917,-500.0,0.00013699,2]
[401813267,1768380643940,-500.0,0.00013699,2]
[401813268,1768380643961,-504.50322617,0.00013699,2]
[401813270,1768380643984,-500.30572678,0.00013699,2]
[401813272,1768380644006,-500.0,0.00013699,2]
[401813274,1768380644029,-193.02895498,0.00013699,2]
[401813276,1768380644051,-500.0,0.00013699,2]
[401813278,1768380644073,-500.0,0.00013699,2]
[401813280,1768380644094,-500.0,0.00013699,2]
[401813282,1768380644105,-500.0,0.00013699,2]
[401813284,1768380644115,-500.0,0.00013699,2]
[401813286,1768380644127,-500.0,0.00013699,2]
[401813288,1768380644137,-500.0,0.00013699,2]
[401813290,1768380644147,-500.0,0.00013699,2]
[401813293,1768380644157,-500.0,0.00013699,2]
[401813295,1768380644168,-500.28466628,0.00013699,2]
[401813296,1768380644179,-500.0,0.00013699,2]
[401813298,1768380644188,-500.0,0.00013699,2]
[401813300,1768380644197,-500.0,0.00013699,2]
[401813302,1768380644207,-413.79090585,0.00013699,2]
[401813304,1768380644216,-500.0,0.00013699,2]
[401813306,1768380644225,-500.63930151,0.00013699,2]
[401813308,1768380644234,-500.35014826,0.00013699,2]
[401813310,1768380644243,-501.43010395,0.00013699,2]
[401813312,1768380644252,-500.0,0.00013699,2]
[401813314,1768380644263,-500.32486546,0.00013699,2]
[401813316,1768380644272,-500.0,0.00013699,2]
[401813318,1768380644282,-500.0,0.00013699,2]
[401813320,1768380644291,-301.86126485,0.00013699,2]
[401813322,1768380644300,-252.90578758,0.00013699,2]
[401813324,1768380644310,-500.0,0.00013699,2]
[401813326,1768380644319,-500.0,0.00013699,2]
[401813329,1768380644328,-500.0,0.00013699,2]
[401813331,1768380644338,-500.0,0.00013699,2]
[401813333,1768380644347,-500.0,0.00013699,2]
[401813335,1768380644356,-500.0,0.00013699,2]
[401813337,1768380644365,-500.0,0.00013699,2]
[401813338,1768380644374,-500.0,0.00013699,2]
[401813340,1768380644383,-500.0,0.00013699,2]
[401813342,1768380644393,-500.0,0.00013699,2]